{"text_format":"1","workbook":"xlsx","n_sheets":6,"sheets":["TITLE1","NOTES","NOTES (2)","NOTES (3)","GEN SUM","STRUCTURES"],"not_rendered":{"charts":0,"images":4,"macros":1,"external_links":1,"defined_names":7,"comments":1,"pivot_tables":0},"unopened":[],"bounds":{"document_bytes":16777216,"sheet_cells":100000,"rows_first":2000,"rows_last":500,"rows_between":2000,"halvings":0,"cell_chars":16384,"cell_head_chars":4096},"cells_cut":0,"cells_raw":0,"read":"whole","date_system":"1900"}

{"sheet":"TITLE1","index":0,"n_rows":57,"n_cols":32,"rows_kept":57,"cut":false,"hidden":false,"merged":[[56,3,57,8],[56,1,57,2],[22,1,22,14],[46,13,46,15],[46,1,53,8],[49,13,49,15],[45,10,45,12],[45,13,45,15],[45,1,45,8],[48,13,48,15],[50,10,50,12],[52,10,52,12],[53,10,53,12],[43,1,44,8],[25,1,25,10],[23,15,23,16],[22,15,22,16],[57,10,57,12],[56,10,56,12],[57,13,57,15],[54,3,55,8],[54,1,55,2],[55,10,55,12],[55,13,55,15],[45,16,45,18],[42,1,42,8],[39,1,40,15],[54,10,54,12],[47,13,47,15],[46,16,46,18],[51,10,51,12],[4,17,4,23],[10,18,12,33],[7,24,7,33],[5,24,6,33],[8,24,9,33],[8,17,9,23],[7,17,7,23],[5,17,6,23],[4,24,4,33],[34,1,38,15],[31,1,33,15],[20,15,20,16],[24,1,24,14],[23,1,23,14],[18,1,18,8],[33,21,33,33],[38,21,38,33],[32,21,32,33],[37,21,37,33],[35,21,35,27],[30,1,30,15],[24,15,24,16],[18,9,18,16],[37,17,37,20],[25,18,30,33],[19,18,24,33],[13,18,18,33],[32,17,32,20],[21,1,21,14],[20,1,20,14],[27,1,27,8],[28,1,28,8],[28,9,28,16],[27,9,27,16],[0,17,3,33],[45,19,45,21],[52,22,52,24],[49,22,49,24],[49,25,49,27],[50,22,50,24],[50,25,50,27],[51,16,51,18],[51,19,51,21],[49,16,49,18],[49,19,49,21],[50,16,50,18],[50,19,50,21],[21,15,21,16],[40,21,40,27],[45,31,45,33],[45,22,45,24],[45,25,45,27],[45,28,45,30],[25,11,25,16],[43,28,44,33],[43,10,44,27],[40,17,40,20],[35,17,35,20],[46,31,46,33],[47,28,47,30],[47,31,47,33],[56,22,56,24],[56,25,56,27],[48,25,48,27],[46,22,46,24],[46,25,46,27],[47,22,47,24],[47,25,47,27],[46,28,46,30],[55,25,55,27],[51,22,51,24],[51,25,51,27],[48,31,48,33],[49,28,49,30],[49,31,49,33],[52,28,52,30],[52,31,52,33],[48,22,48,24],[48,28,48,30],[52,25,52,27],[50,28,51,33],[53,28,53,30],[53,31,53,33],[54,28,54,30],[57,22,57,24],[54,31,54,33],[56,28,56,30],[57,25,57,27],[56,31,56,33],[55,28,55,30],[55,31,55,33],[54,25,54,27],[53,25,53,27],[53,22,53,24],[55,22,55,24],[54,22,54,24],[57,28,57,30],[57,31,57,33],[46,19,46,21],[47,16,47,18],[47,19,47,21],[48,16,48,18],[48,19,48,21],[54,13,54,15],[50,13,50,15],[52,13,52,15],[53,13,53,15],[51,13,51,15],[57,16,57,18],[57,19,57,21],[53,19,53,21],[54,16,54,18],[54,19,54,21],[52,16,52,18],[52,19,52,21],[53,16,53,18],[56,13,56,15],[56,16,56,18],[56,19,56,21],[55,19,55,21],[55,16,55,18]]}
[null,null,null,null,null,null,null,null,null,null,null,null,null,null,null,null,null,"JAC/PIK-35/23-VAR/VAR"]
[]
[]
[]
[null,null,null,null,null,null,null,null,null,null,null,null,null,null,null,null,null,"PID No.",null,null,null,null,null,null,"FEDERAL PROJECT No."]
[null,null,null,null,null,null,null,null,null,null,null,null,null,null,null,null,null,107345,null,null,null,null,null,null,"NON-FEDERAL"]
[]
[null,null,null,null,null,null,null,null,null,null,null,null,null,null,null,null,null,"STATE JOB No.",null,null,null,null,null,null,"CONSTRUCTION PROJECT No."]
[null,null,null,null,null,null,null,null,null,null,null,null,null,null,null,null,null,499593]
[]
[null,null,null,null,null,null,null,null,null,null,null,null,null,null,null,null,null,null,"PROJECT DESCRIPTION\nCONCRETE BRIDGE DECK SEALING AT VARIOUS BRIDGES IN JACKSON AND PIKE COUNTIES ON U.S. 35 AND U.S. 23"]
[]
[]
[null,null,null,null,null,null,null,null,null,null,null,null,null,null,null,null,null,null,"2023 SPECIFICATIONS\nTHE STANDARD SPECIFICATIONS OF THE STATE OF OHIO, DEPARTMENT OF TRANSPORTATION, INCLUDING SUPPLEMENTAL SPECIFICATIONS LISTED IN THE PLANS AND CHANGES LISTED IN THE PROPOSAL SHALL GOVERN THIS IMPROVEMENT."]
[]
[]
[]
[]
[null,"LATITUDE: N 39° 19' 29\"",null,null,null,null,null,null,null,"LONGITUDE: W 82° 57' 47\""]
[null,null,null,null,null,null,null,null,null,null,null,null,null,null,null,null,null,null,"LIMITED ACCESS\nTHIS IMPROVEMENT IS ESPECIALLY DESIGNED FOR THROUGH TRAFFIC AND HAS BEEN DECLARED A LIMITED ACCESS HIGHWAY, OR FREEWAY, BY ACTION OF THE DIRECTOR IN ACCORDANCE WITH THE PROVISIONS OF SECTION 5511.02 OF THE OHIO REVISED CODE."]
[null,"EARTH DISTURBED AREA:",null,null,null,null,null,null,null,null,null,null,null,null,null,"N/A*"]
[null,"PROJECT EARTH DISTURBED AREA:",null,null,null,null,null,null,null,null,null,null,null,null,null,"N/A*"]
[null,"EST. CONTRACTOR EARTH DISTURBED AREA:",null,null,null,null,null,null,null,null,null,null,null,null,null,"N/A*"]
[null,"NOTICE OF INTENT EARTH DISTURBED AREA:",null,null,null,null,null,null,null,null,null,null,null,null,null,"N/A*"]
[null,"RAILROAD INVOLVEMENT:",null,null,null,null,null,null,null,null,null,null,null,null,null,"NONE"]
[null,"*TYPE OF PROJECT:",null,null,null,null,null,null,null,null,null,"MAINTENANCE",null,null,null,null,null,null,"I HEREBY APPROVE THESE PLANS AND DECLARE THAT THE MAKING OF THIS IMPROVEMENT WILL NOT REQUIRE THE CLOSING OF THE HIGHWAY TO TRAFFIC AND THAT PROVISIONS FOR THE MAINTENANCE AND SAFETY OF TRAFFIC WILL BE AS SET FORTH IN THESE PLANS AND ESTIMATES."]
[]
[null,"DESIGN DESIGNATION:",null,null,null,null,null,null,null,"(SEE SHEET 2)"]
[null,"DESIGN EXCEPTION:",null,null,null,null,null,null,null,"NONE"]
[]
[]
[]
[null,null,null,null,null,null,null,null,null,null,null,null,null,null,null,null,null,"APPROVED:"]
[null,null,null,null,null,null,null,null,null,null,null,null,null,null,null,null,null,null,null,null,null,"DISTRICT DEPUTY DIRECTOR"]
[]
[null,null,null,null,null,null,null,null,null,null,null,null,null,null,null,null,null,"DATE:"]
[]
[null,null,null,null,null,null,null,null,null,null,null,null,null,null,null,null,null,"APPROVED:"]
[null,null,null,null,null,null,null,null,null,null,null,null,null,null,null,null,null,null,null,null,null,"DIRECTOR, DEPARTMENT OF TRANSPORTATION"]
[]
[null,null,null,null,null,null,null,null,null,null,null,null,null,null,null,null,null,"DATE:"]
[]
[null,"PLANS PREPARED BY:"]
[null,"ODOT, DISTRICT 9 - P & E\nCHILLICOTHE, OH",null,null,null,null,null,null,null,null,"STANDARD CONSTRUCTION DRAWINGS",null,null,null,null,null,null,null,null,null,null,null,null,null,null,null,null,null,"SUPPLEMENTAL\nSPECIFICATIONS"]
[]
[null,"ENGINEERS SEAL:",null,null,null,null,null,null,null,null,"MT-95.30",null,null,"2019-07-19",null,null,null,null,null,null,null,null,null,null,null,null,null,null,"800-2023",null,null,"SEE PROPOSAL"]
[null,null,null,null,null,null,null,null,null,null,"MT-98.10",null,null,"2020-01-17",null,null,null,null,null,null,null,null,null,null,null,null,null,null,821,null,null,"2012-04-20"]
[null,null,null,null,null,null,null,null,null,null,"MT-98.11",null,null,"2020-01-17",null,null,null,null,null,null,null,null,null,null,null,null,null,null,832,null,null,"2022-07-15"]
[null,null,null,null,null,null,null,null,null,null,"MT-98.20",null,null,"2019-04-19",null,null,null,null,null,null,null,null,null,null,null,null,null,null,921,null,null,"2012-04-20"]
[null,null,null,null,null,null,null,null,null,null,"MT-98.22",null,null,"2020-01-17"]
[null,null,null,null,null,null,null,null,null,null,"MT-98.28",null,null,"2020-01-17",null,null,null,null,null,null,null,null,null,null,null,null,null,null,"SPECIAL\nPROVISIONS"]
[null,null,null,null,null,null,null,null,null,null,"MT-105.10",null,null,"2020-01-17"]
[null,null,null,null,null,null,null,null,null,null,null,null,null,null,null,null,null,null,null,null,null,null,null,null,null,null,null,null,"NONE"]
[]
[null,"SIGN:"]
[]
[null,"DATE:"]

{"sheet":"NOTES","index":1,"n_rows":54,"n_cols":3,"rows_kept":54,"cut":false,"hidden":false,"merged":[[44,1,45,3],[46,0,47,0],[46,1,47,3],[48,0,49,0],[48,1,49,3],[53,0,58,0],[2,0,7,0],[9,0,14,0],[16,0,19,0],[44,0,45,0]]}
["ITEM 512 - SEALING CONCRETE BRIDGE DECKS WITH HMWM RESIN, AS PER PLAN"]
[]
["THIS ITEM SHALL CONSIST OF SEALING OPENED CRACKS AND CONSTRUCTION JOINTS ON THE BRIDGE DECK AND APPROACH SLABS WITH HMWM RESIN.  PRIOR TO SEALING THE JOINTS AND CRACKS, THE ENGINEER SHALL MARK ALL AREAS TO BE SEALED.  THE SEALING WIDTH SHALL BE A MINIMUM OF 1'-0\" CENTERED ON THE OPENING."]
[]
[]
[]
[]
[]
[]
["ITEM 512, SEALING OF CONCRETE BRIDGE DECKS WITH HMWM RESIN, AS PER PLAN SHALL BE ALLOWED TO CURE IN ACCORDANCE WITH CMS 512.04.  THEN THE DECK SURFACE AND APPROACH SLABS MAY BE CLEANED AND TREATED WITH ITEM 512, SEALING CONCRETE BRIDGE DECKS WITH SRS (INCLUDING APPROACH SLABS) IN ACCORDANCE WITH CMS 512.05."]
[]
[]
[]
[]
[]
[]
["PAYMENT FOR ALL LABOR, MATERIAL, AND EQUIPMENT REQUIRED TO PERFORM THE WORK OUTLINED ABOVE SHALL BE INCLUDED IN THE SQUARE YARD CONTRACT PRICE FOR ITEM 512, SEALING OF CONCRETE BRIDGE DECKS WITH HMWM RESIN, AS PER PLAN, UNLESS SEPERATELY ITEMIZED IN THE PLANS."]
[]
[]
[]
[]
[]
["DESIGN DESIGNATION "," US 35 "," US 23 "]
["CURRENT ADT (2022)                                                              ",16500,18000]
["DESIGN YEAR ADT(2042)                                                        ",20000,19000]
["DESIGN HOURLY VOLUME (2042)                                            ",2400,2200]
["DIRECTIONAL DISTRIBUTION                                                    ",0.54500000000000004,0.68799999999999994]
["TRUCKS (24 HOUR B&C)                                                            ",0.33,0.19]
["DESIGN SPEED                                                                     ","60 MPH","60 MPH"]
["LEGAL SPEED                                                                      ","60 MPH","60 MPH"]
["DESIGN FUNCTIONAL CLASSIFICATION"]
["          02 OTHER FREEWAYS OR EXPRESSWAYS (RURAL)"]
["NHS PROJECT                                                                          YES"]
[]
[]
["SPECIAL CONSTRUCTION REQUIREMENT"]
["THE CONTRACTOR SHALL PERFORM THE WORK IN THE"]
["FOLLOWING SEQUENCE:"]
["     1. REMOVE ALL FOREIGN MATERIAL."]
["     2. APPLY HMWM RESIN."]
["     3. APPLY SRS."]
[]
[]
["LANE VALUE CONTRACT TABLE"]
["DESCRIPTION OF CRITICAL LANE/RAMP TO BE MAINTAINED","DISINCENTIVE $ PER MINUTE PER LANE"]
[]
["ALL LANES OF TRAFFIC AND RAMPS ON U.S. 35 FROM SLM 11.47 TO SLM 16.65",50]
[]
["ALL LANES OF TRAFFIC ON U.S. 23 FROM SLM 0.92 TO SLM 10.87",50]
[]
[]
[]
["UTILITIES"]
["THERE ARE NO EXISTING OVERHEAD OR UNDERGROUND UTILITIES SHOWN ON THIS PLAN. DUE TO THE NATURE OF THE WORK REQUIRED BY THIS PROJECT, NO UTILITY CONFLICTS ARE ANTICIPATED. HOWEVER, IT IS THE RESPONSIBILITY OF THE CONTRACTOR TO CONTACT OHIO 811 (OUPS) FOR FIELD MARKINGS TO IDENTIFY POTENTIAL UTILITY CONFLICTS."]

{"sheet":"NOTES (2)","index":2,"n_rows":73,"n_cols":6,"rows_kept":73,"cut":false,"hidden":false,"merged":[[55,0,56,0],[57,0,58,0],[62,0,63,0],[64,0,65,0],[24,0,31,1],[33,0,36,1],[43,0,46,1],[47,0,48,0],[47,1,48,1],[49,0,50,0],[51,0,52,0],[53,0,54,0],[0,0,0,1],[0,3,0,5],[30,3,30,5],[2,0,10,1],[15,0,22,1],[12,0,13,1],[53,3,53,5],[2,3,8,5],[10,3,18,5],[55,3,57,3],[20,3,23,5],[25,3,28,5],[31,3,41,5],[43,3,51,5],[72,0,74,1],[67,0,70,1],[71,3,72,5],[59,3,60,3],[62,3,63,3],[62,5,63,5],[65,3,68,5],[70,3,70,5]]}
["ITEM 614 - MAINTAINING TRAFFIC",null,null,"ITEM 614 - MAINTAINING TRAFFIC CONTINUED"]
[]
["A MINIMUM OF ONE 10'-0\" LANE OF TRAFFIC IN EACH DIRECTION ON U.S. 35 AND U.S. 23 SHALL BE MAINTAINED AT ALL TIMES BY USE OF THE EXISTING PAVEMENT. A MINIUMUM OF ONE 10'-0\" LANE OF TRAFFIC ON ALL RAMPS AND ACCELERATION & DECELERATION LANES SHALL BE MAINTAINED AT ALL TIMES BY THE USE OF THE EXISTING PAVEMENT. WORK SHALL NOT BEGIN ON U.S. 23 UNTIL WORK ON PIK-23-3.53 (PID 114728) IS COMPLETE, UNLESS OTHERWISE APPROVED BY THE DISTRICT CONSTRUCTION ENGINEER. WORK IS ANTICIPATED TO BE COMPLETED BY 8/31/2023.",null,null,"THE CONTRACTOR SHALL ARRANGE FOR ALL MAINTENANCE OF TRAFFIC OPERATIONS SUCH THAT THERE WILL BE NO OBSTRUCTIONS TO THE CONTINUOUS FLOW OF TRAFFIC.  A MINIMUM OF ONE LANE OF TRAFFIC SHALL BE MAINTAINED ON ALL COUNTY AND TOWNSHIP ROADS AND ALL INTERSECTIONS (INCLUDING DRIVEWAYS) AND CROSS-OVERS SHALL BE OPEN TO TRAFFIC AT ALL TIMES."]
[]
[]
[]
[]
[]
[]
[]
[null,null,null,"BEFORE THE WORK BEGINS, THE CONTRACTOR SHALL SUBMIT TO THE ENGINEER THE NAME(S) AND TELEPHONE NUMBER(S) OF A PERSON OR PERSONS WHO CAN BE CONTACTED TWENTY-FOUR (24) HOURS PER DAY BY THE OHIO DEPARTMENT OF TRANSPORTATION AND ALL INTERESTED POLICE AGENCIES.  THIS PERSON OR PERSONS SHALL BE RESPONSIBLE FOR PLACING OR REPLACING NECESSARY TRAFFIC CONTROL DEVICES IN ACCORDANCE WITH THE OHIO MANUAL OF UNIFORM TRAFFIC CONTROL DEVICES."]
[]
["LANE CLOSURES WILL BE LIMITED TO THREE CONSECUTIVE CALENDAR DAYS."]
[]
[]
["LENGTH AND DURATION OF LANE CLOSURES AND RESTRICTIONS SHALL BE AT THE APPROVAL OF THE ENGINEER.  IT IS THE INTENT TO MINIMIZE THE IMPACT TO THE TRAVELING PUBLIC.  LANE CLOSURES OR RESTRICTIONS OVER SEGMENTS OF THE PROJECT IN WHICH NO WORK IS ANTICIPATED WITHIN A REASONABLE TIME FRAME, AS DETERMINED BY THE ENGINEER, SHALL NOT BE PERMITTED.  THE LEVEL OF UTILIZATION OF MAINTENANCE OF TRAFFIC DEVICES SHALL BE COMMENSURATE WITH THE WORK IN PROGRESS."]
[]
[]
[]
[]
[null,null,null,"ALL WORK AND TRAFFIC CONTROL DEVICES SHALL BE IN ACCORDANCE WITH CMS 614 AND OTHER APPLICABLE PORTIONS OF THE SPECIFICATIONS, AS WELL AS THE OHIO MANUAL OF UNIFORM TRAFFIC CONTROL DEVICES."]
[]
[]
[]
["ALL TRAFFIC CONTROL SIGNS, DEVICES, AND OPERATIONS USED FOR THE TEMPORARY MAINTENANCE AND CONTROL SHALL AT ALL TIMES BE SUBJECT TO THE DIRECTION AND CONTROL OF THE ENGINEER IN RESPECT TO THEIR CONDITIONS, LOCATIONS, AND TIMES OF APPLICATION.  VISIBLE SIGNS AND DEVICES SHALL CONSISTENTLY REFLECT THE CONDITIONS ACTUALLY EXISTING.  INAPPROPRIATE SIGNS OR DEVICES SHALL BE REMOVED OR COVERED."]
[null,null,null,"PAYMENT FOR ALL LABOR, EQUIPMENT AND MATERIALS SHALL BE INCLUDED IN THE LUMP SUM CONTRACT PRICE FOR ITEM 614 MAINTAINING TRAFFIC UNLESS SEPERATELY ITEMIZED IN THE PLANS."]
[]
[]
[]
[]
[null,null,null,"NOTIFICATION OF TRAFFIC RESTRICTIONS"]
[null,null,null,"THROUGHOUT THE DURATION OF THE PROJECT, THE CONTRACTOR SHALL NOTIFY THE PROJECT ENGINEER IN WRITING OF ALL TRAFFIC RESTRICTIONS AND UPCOMING MAINTENANCE OF TRAFFIC CHANGES.  THE CONTRACTOR SHALL ENSURE THE WRITTEN NOTIFACTION IS SUBMITTED IN A TIMELY MANNER TO ALLOW THE PROJECT ENINGEER TO MEET THE REQUIRED TIME FRAMES SET FORTH IN THE TABLE BELOW TO INFORM THE SPECIAL HAULINCG PERMITS SECTION AND THE DISTRICT PUBLIC INFOMRATION OFFICE (PIO).  THIS NOTIFICATION SHALL BE RECIEVED BY THE PROJECT ENGINEER PRIOR TO THE PHUSICAL SETUP OF ANY APPLICABLE SIGNS OR MESSAGE BOARDS."]
[]
["NO WORK SHALL BE PERFORMED AND ALL EXISTING LANES SHALL BE OPEN TO TRAFFIC (EXCEPT FOR THE LANE CLOSURES FOR THE BRIDGE WORK ZONES) DURING THE FOLLOWING DESIGNATED HOLIDAYS OR EVENTS:"]
[]
[]
[]
[]
["CHRISTMAS","LABOR DAY"]
["NEW YEARS","THANKSGIVING"]
["MEMORIAL DAY","SPECIAL LOCAL EVENTS"]
["FOURTH OF JULY","(OTHER HOILDAY OR EVENT)"]
[]
["THE PERIOD OF TIME THAT THE LANES ARE TO BE OPEN DEPENDS ON THE DAY OF THE WEEK ON WHICH THE HOLIDAY OR EVENT FALLS.  THE FOLLOWING SCHEDULE SHALL BE USED TO DETERMINE THIS PERIOD:",null,null,"INFORMATION SHOULD INCLUDE, BUT IS NOT LIMITED TO, ALL CONSTRUCTION ACTIVITIES THAT IMPAC OR INTERFERE WITH TRAFFIC AND SHALL LIST THE SPECIFIC LCOATION, TYPE OF WORK, ROAD STATUS, DATE AND TIME OF RESTRICTION, DURATION OF RESTRICTION, NUMBER OF LANES MAINTAINED, NUMBER OF LANES CLOSED, MINIMUM VERTICAL CLEARANCE, MINIMUM WIDTH OF DRIVEABLE PAVEMENT, DETOUR ROUTES, IF APPLICABLE, AND ANY OTHER INFORMATION REQURESTED BY THE PROJECT ENGINEER."]
[]
[]
[]
["DAY OF HOLIDAY OR EVENT","TIME ALL LANES MUST BE OPEN TO TRAFFIC"]
[]
["   SUNDAY","12:00N FRIDAY THROUGH "]
[null,"6:00AM MONDAY"]
["   MONDAY","12:00N FRIDAY THROUGH"]
[null,"6:00AM MONDAY"]
["   TUESDAY","12:00N MONDAY THROUGH",null,"NOTIFICATION TIME TABLE"]
[null,"6:00AM MONDAY",null,"ITEM","DURATION OF CLOSURE","NOTICE REQ'D."]
["   WEDNESDAY","12:00N TUESDAY THROUGH",null,"RAMP AND ROAD CLOSURE",">= 2 WEEKS","21 CALENDARDAYS"]
[null,"6:00AM MONDAY",null,null,">12 HOURS & < 2 WEEKS","14 CALENDAR DAYS"]
["   THURSDAY","12:00N WEDNESDAY THROUGH",null,null,"<= 2 WEEKS","4 BUSINESS DAYS"]
[null,"6:00AM FRIDAY"]
["   THURSDAY","6:00AM WEDNESDAY THROUGH",null,"LANE CLOSURES AND RSTRICTIONS",">= 2 WEEKS","14 CALENDAR DAYS"]
["   (THANKSGIVING","6:00AM MONDAY",null,null,"< 2 WEEKS","5 BUSINESS DAYS"]
["   ONLY)"]
["   FRIDAY","12:00N THURSDAY THROUGH",null,"START OF CONSTRUCTION",null,"14 CALENDAR DAYS"]
[null,"6:00AM MONDAY"]
["   SATURDAY","12:00N FRIDAY THROUGH"]
[null,"6:00AM MONDAY",null,"ANY UNFORSEEN CONDITIONS NOT SPECIFIED IN THE PLANS REQUIRING TRAFFIC RESTRICTIONS SHALL ALSO BE REPORTED TO THE PROJECT ENGINEER USING THE NOTIFICATION TIME TABLE."]
[]
["NO EXTENSIONS OF TIME SHALL BE GRANTED FOR DELAYS IN MATERIAL DELIVERIES, UNLESS SUCH DELAYS ARE INDUSTRY-WIDE, OR FOR LABOR STRIKES, UNLESS SUCH STRIKES ARE AREA-WIDE."]
[]
[]
[null,null,null,"EXISTING SHOULDERS"]
[null,null,null,"TRAFFIC SHALL NOT BE REQUIRED TO TRAVEL ALONG THE EXISTING SHOULDERS THAT HAVE RUMBLE STRIPS."]
["SHOULD THE CONTRACTOR FAIL TO MEET ANY OF THESE REQUIREMENTS, THE CONTRACTOR SHALL BE ASSESSED A DISINCENTIVE PER THE LANE VALUE CONTRACT (PN 127)."]

{"sheet":"NOTES (3)","index":3,"n_rows":4,"n_cols":4,"rows_kept":4,"cut":false,"hidden":false,"merged":[[3,0,70,1],[0,0,2,1],[0,3,2,5],[3,3,42,5]]}
["ITEM 614, LAW ENFORCEMENT OFFICER (WITH PATROL CAR)",null,null,"ITEM 614, LAW ENFORCEMENT OFFICER (WITH PATROL CAR) CONTINUED"]
[]
[]
["USE OF LAW ENFORCEMENT OFFICERS (LEOS) BY CONTRACTORS  OTHER THAN THE USES SPECIFIED BELOW WILL NOT BE PERMITTED AT PROJECT COST. LEOS SHOULD NOT BE USED WHERE THE OMUTCD INTENDS THAT FLAGGERS BE USED.\n\nIN ADDITION TO THE REQUIREMENT OF C&MS 614 AND THE\nOMUTCD, A UNIFORMED LEO WITH AN OFFICIAL PATROL CAR\n(CAR WITH TOP-MOUNTED EMERGENCY FLASHING LIGHTS AND\nCOMPLETE MARKINGS OF THE APPROPRIATE LAW ENFORCEMENT\nAGENCY) SHOULD BE PROVIDED FOR THE FOLLOWING TRAFFIC\nCONTROL TASKS AS APPROVED BY THE ENGINEER:\n\n    FOR LANE CLOSURES: DURING INITIAL SET-UP PERIODS,\n    TEAR DOWN PERIODS, SUBSTANTIAL SHIFTS OF A CLOSURE\n    POINT OR WHEN NEW LANE CLOSURE ARRANGEMENTS ARE\n    INITIATED FOR LONG-TERM LANE CLOSURES/SHIFTS (FOR\n    THE FIRST AND LAST DAY OF MAJOR CHANGES IN TRAFFIC\n    CONTROL SETUP).\n\nIN GENERAL, LEOS SHOULD BE POSITIONED IN ADVANCE OF AND\nON THE SAME SIDE AS THE LANE RESTRICTION (OR AT THE POINT\nOF ROAD CLOSURE), AND TO MANUALLY CONTROL TRAFFIC\nMOVEMENTS THROUGH SIGNALIZED INTERSECTIONS IN WORK\nZONES.\n\nLEOS SHOULD NOT FORGO THEIR TRAFFIC CONTROL\nRESPONSIBILITIES TO APPREHEND MOTORISTS FOR ROUTINE\nTRAFFIC VIOLATIONS. HOWEVER, IF A MOTORIST'S ACTIONS\nARE CONSIDERED TO BE RECKLESS, THEN PURSUIT OF THE\nMOTORIST IS APPROPRIATE.\n\nTHE LEOS WORK AT THE DIRECTION OF THE CONTRACTOR.\nTHE CONTRACTOR IS RESPONSIBLE FOR SECURING THE\nSERVICES OF THE LEOS WITH THE APPROPRIATE AGENCIES\nAND COMMUNICATING THE INTENTIONS OF THE PLANS WITH\nRESPECT TO DUTIES OF THE LEOS. THE ENGINEER SHALL\nHAVE FINAL CONTROL OVER THE LEOS' DUTIES AND PLACEMENT,\nAND WILL RESOLVE ANY ISSUES THAT MAY ARISE BETWEEN THE\nTWO PARTIES.\n\nTHE LEO SHALL REPORT IN TO THE CONTRACTOR PRIOR TO\nTHE START OF THE SHIFT, IN ORDER TO RECEIVE INSTRUCTIONS\nREGARDING SPECIFIC WORK ASSIGNMENTS DURING HIS/HER\nSHIFT. THE LEO IS EXPECTED TO STAY AT THE PROJECT SITE\nFOR THE ENTIRE DURATION OF HIS/HER SHIFT. THE LEO SHALL\nREPORT TO THE CONTRACTOR AT THE END OF HIS/HER SHIFT.\nSHOULD IT BE NECESSARY TO LEAVE THE PROJECT SITE, THE\nLEO SHALL NOTIFY THE ENGINEER. THE CONTRACTOR SHALL\nPROVIDE THE LEO WITH A TWO-WAY COMMUNICATION DEVICE\nTHAT SHALL BE RETURNED TO THE CONTRACTOR AT THE END\nOF HIS/HER SHIFT.\n\nLEOS (WITH PATROL CAR) REQUIRED BY THE TRAFFIC\nMAINTENANCE TASKS ABOVE SHALL BE PAID FOR ON A UNIT\nPRICE (HOURLY) BASIS UNDER ITEM 614, LAW ENFORCEMENT\nOFFICER (WITH PATROL CAR) FOR ASSISTANCE. THE FOLLOWING\nESTIMATED QUANTITIES HAVE BEEN CARRIED TO THE GENERAL\nSUMMARY.",null,null,"ITEM 614, LAW ENFORCEMENT OFFICER WITH PATROL CAR\n                   FOR ASSISTANCE     40 HOURS\n\nTHE HOURS PAID SHALL INCLUDE ANY MINIMUM SHOW-UP TIME\nREQUIRED BY THE LAW ENFORCEMENT AGENCY INVOLVED.\n\nANY ADDITIONAL COSTS (ADMINISTRATIVE OR OTHERWISE)\nINCURRED BY THE CONTRACTOR TO OBTAIN THE SERVICES\nOF A LEO ARE INCLUDED WITH THE BID UNIT PRICE FOR\nITEM 614, LAW ENFORCEMENT OFFICER WITH PATROL CAR"]

{"sheet":"GEN SUM","index":4,"n_rows":109,"n_cols":14,"rows_kept":109,"cut":false,"hidden":false,"merged":[[43,5,43,7],[42,5,42,7],[55,5,55,7],[50,5,50,7],[51,5,51,7],[52,5,52,7],[53,5,53,7],[54,5,54,7],[45,5,45,7],[46,5,46,7],[47,5,47,7],[48,5,48,7],[49,5,49,7],[11,5,11,7],[12,5,12,7],[13,5,13,7],[14,5,14,7],[22,5,22,7],[21,5,21,7],[18,5,18,7],[15,5,15,7],[19,5,19,7],[17,5,17,7],[8,5,8,7],[4,5,5,7],[2,5,3,7],[6,5,6,7],[7,5,7,7],[10,5,10,7],[9,5,9,7],[75,0,81,0],[58,9,59,9],[58,10,59,10],[58,5,59,5],[58,6,59,6],[58,7,59,7],[58,4,59,4],[58,1,59,1],[58,2,59,2],[58,3,59,3],[56,8,59,8],[56,9,57,9],[2,8,5,8],[2,9,3,9],[4,1,5,1],[4,9,5,9],[4,2,5,2],[4,3,5,3],[2,1,3,4],[4,4,5,4],[0,1,1,13],[34,0,38,0],[82,0,85,0],[0,0,15,0],[56,13,59,13],[2,13,5,13],[25,0,33,0],[56,1,57,7],[4,10,5,10],[2,11,5,11],[2,12,5,12],[2,10,3,10],[56,10,57,10],[56,11,59,11],[56,12,59,12],[38,5,38,7],[35,5,35,7],[16,5,16,7],[25,5,25,7],[39,5,39,7],[40,5,40,7],[41,5,41,7],[23,5,23,7],[33,5,33,7],[34,5,34,7],[28,5,28,7],[24,5,24,7],[30,5,30,7],[29,5,29,7],[27,5,27,7],[31,5,31,7]]}
["TO USE MACRO FOR PLACING ITEMS - CLICK THE BUTTON.  IN THE DIALOG BOX, CLICK FILE THEN NAVIGATE TO I:\\ODOTstd\\V8istd\\vba\\data AND SELECT THE APPROPRIATE FILE (E = ENGLISH UNITS). CLICK 'OPEN'. THEN FROM THE DROP DOWN YOU CAN BEGIN SELECTING YOUR ITEMS.\n\nWARNING: BE SURE TO SELECT A CELL IN THE \"ITEM\" COLUMN PRIOR TO PLACING ANY ITEM FROM THE MACRO WINDOW.\n|\n|\n\\/","The shape object  InnerSheetBorder  represents the drawing area of an 8.5\"x11\" ODOT General Summary sheet "]
[]
[null,"SHEET NUMBER",null,null,null,"PLAN SPLIT",null,null,"ITEM","ITEM","GRAND","UNIT","DESCRIPTION","SEE SHEET NO"]
[]
[null,null,null,4,6,"01/NFA/47",null,null,null,"EXT","TOTAL"]
[]
[]
[null,null,null,null,null,null,null,null,null,null,null,null,"EROSION CONTROL"]
[null,null,null,null,null,1000,null,null,"832","30000",1000,"EACH","EROSION CONTROL"]
[]
[null,null,null,null,null,null,null,null,null,null,null,null,"TRAFFIC CONTROL "]
[null,null,null,null,{"$f":"STRUCTURES!P44","v":2.88},{"$f":"D12+E12","v":2.88},null,null,"642","00104",{"$f":"D12+E12","v":2.88},"MILE","EDGE LINE, 6\", TYPE 1"]
[null,null,null,null,{"$f":"STRUCTURES!R44","v":1.25},{"$f":"D13+E13","v":1.25},null,null,"642","00204",{"$f":"D13+E13","v":1.25},"MILE","LANE LINE, 6\", TYPE 1"]
[]
[null,null,null,null,null,null,null,null,null,null,null,null,"STRUCTURE REPAIR"]
[null,null,null,null,0,null,null,null,null,null,null,null,"STRUCTURE JAC-35-1147B (SFN 4000293) GENERAL SUMMARY",6]
[null,null,null,null,null,null,null,null,null,null,null,null,"STRUCTURE JAC-35-1147D (SFN 4000358) GENERAL SUMMARY",6]
[null,null,null,null,null,null,null,null,null,null,null,null,"STRUCTURE JAC-35-1147L (SFN 4000315) GENERAL SUMMARY",6]
[null,null,null,null,null,null,null,null,null,null,null,null,"STRUCTURE JAC-35-1147R (SFN 4000323) GENERAL SUMMARY",6]
[null,null,null,null,null,null,null,null,null,null,null,null,"STRUCTURE JAC-35-1216L (SFN 4000374) GENERAL SUMMARY",6]
[]
[null,null,null,null,null,null,null,null,null,null,null,null,"STRUCTURE JAC-35-1216R (SFN 4000382) GENERAL SUMMARY",6]
[null,null,null,null,null,null,null,null,null,null,null,null,"STRUCTURE JAC-35-1228L (SFN 4000404) GENERAL SUMMARY",6]
[null,null,null,null,null,null,null,null,null,null,null,null,"STRUCTURE JAC-35-1228R (SFN 4000412) GENERAL SUMMARY",6]
[null,null,null,null,null,null,null,null,null,null,null,null,"STRUCTURE JAC-35-1294L (SFN 4000463) GENERAL SUMMARY",6]
["SHEET 1",null,null,null,null,null,null,null,null,null,null,null,"STRUCTURE JAC-35-1294R (SFN 4000471) GENERAL SUMMARY",6]
[]
[null,null,null,null,null,null,null,null,null,null,null,null,"STRUCTURE JAC-35-1365F (SFN 4000447) GENERAL SUMMARY",6]
[null,null,null,null,null,null,null,null,null,null,null,null,"STRUCTURE JAC-35-1365H (SFN 4000439) GENERAL SUMMARY",6]
[null,null,null,null,null,null,null,null,null,null,null,null,"STRUCTURE JAC-35-1365L (SFN 4000420) GENERAL SUMMARY",6]
[null,null,null,null,null,null,null,null,null,null,null,null,"STRUCTURE JAC-35-1365R (SFN 4000455) GENERAL SUMMARY",6]
[null,null,null,null,null,null,null,null,null,null,null,null,"STRUCTURE PIK-23-0092L (SFN 6600042) GENERAL SUMMARY",6]
[]
[null,null,null,null,null,null,null,null,null,null,null,null,"STRUCTURE PIK-23-0092R (SFN 6600077) GENERAL SUMMARY",6]
["CLICK HERE FOR THE\nITEM MASTER VIA INTRANET",null,null,null,null,null,null,null,null,null,null,null,"STRUCTURE PIK-23-0977 (SFN 6600360) GENERAL SUMMARY",6]
[null,null,null,null,null,null,null,null,null,null,null,null,"STRUCTURE PIK-23-1034 (SFN 6600425) GENERAL SUMMARY",6]
[null,null,null,null,null,null,null,null,null,null,null,null,"STRUCTURE PIK-23-1087 (SFN 6600514) GENERAL SUMMARY",6]
[]
[null,null,null,null,null,null,null,null,null,null,null,null,"MAINTENANCE OF TRAFFIC"]
[null,null,null,40,null,"40",null,null,"614","11110",40,"HOUR","LAW ENFORCEMENT OFFICER WITH PATROL CAR FOR ASSISTANCE"]
[]
[null,null,null,null,null,null,null,null,null,null,null,null,"INCINDENTALS"]
[null,null,null,null,null,"LUMP",null,null,"614","11000","LUMP",null,"MAINTAINING TRAFFIC"]
[null,null,null,null,null,"LUMP",null,null,"624","10000","LUMP",null,"MOBILIZATION"]
[]
[]
[]
[]
[]
[]
[]
[]
[]
[]
[]
[]
[null,"SHEET NUMBER",null,null,null,null,null,null,"ITEM","ITEM","GRAND","UNIT","DESCRIPTION","SEE SHEET NO."]
[]
[null,null,null,null,null,null,null,null,null,"EXT.","TOTAL"]
[]
[null,null,null,null,null,null,null,null,null,null,{"$f":"SUM(B61:H61)","v":0}]
[null,null,null,null,null,null,null,null,null,null,0]
[null,null,null,null,null,null,null,null,null,null,0]
[null,null,null,null,null,null,null,null,null,null,0]
[null,null,null,null,null,null,null,null,null,null,0]
[null,null,null,null,null,null,null,null,null,null,0]
[null,null,null,null,null,null,null,null,null,null,0]
[null,null,null,null,null,null,null,null,null,null,0]
[null,null,null,null,null,null,null,null,null,null,0]
[null,null,null,null,null,null,null,null,null,null,0]
[null,null,null,null,null,null,null,null,null,null,0]
[null,null,null,null,null,null,null,null,null,null,0]
[null,null,null,null,null,null,null,null,null,null,0]
[null,null,null,null,null,null,null,null,null,null,0]
[null,null,null,null,null,null,null,null,null,null,0]
["SHEET 2",null,null,null,null,null,null,null,null,null,0]
[null,null,null,null,null,null,null,null,null,null,0]
[null,null,null,null,null,null,null,null,null,null,0]
[null,null,null,null,null,null,null,null,null,null,0]
[null,null,null,null,null,null,null,null,null,null,0]
[null,null,null,null,null,null,null,null,null,null,0]
[null,null,null,null,null,null,null,null,null,null,0]
["CLICK HERE FOR THE\nITEM MASTER VIA INTRANET",null,null,null,null,null,null,null,null,null,0]
[null,null,null,null,null,null,null,null,null,null,0]
[null,null,null,null,null,null,null,null,null,null,0]
[null,null,null,null,null,null,null,null,null,null,0]
[null,null,null,null,null,null,null,null,null,null,0]
[null,null,null,null,null,null,null,null,null,null,0]
[null,null,null,null,null,null,null,null,null,null,0]
[null,null,null,null,null,null,null,null,null,null,0]
[null,null,null,null,null,null,null,null,null,null,0]
[null,null,null,null,null,null,null,null,null,null,0]
[null,null,null,null,null,null,null,null,null,null,{"$f":"SUM(B93:H93)","v":0}]
[null,null,null,null,null,null,null,null,null,null,0]
[null,null,null,null,null,null,null,null,null,null,0]
[null,null,null,null,null,null,null,null,null,null,0]
[null,null,null,null,null,null,null,null,null,null,0]
[null,null,null,null,null,null,null,null,null,null,0]
[null,null,null,null,null,null,null,null,null,null,0]
[null,null,null,null,null,null,null,null,null,null,0]
[null,null,null,null,null,null,null,null,null,null,0]
[null,null,null,null,null,null,null,null,null,null,0]
[null,null,null,null,null,null,null,null,null,null,0]
[null,null,null,null,null,null,null,null,null,null,0]
[null,null,null,null,null,null,null,null,null,null,0]
[null,null,null,null,null,null,null,null,null,null,0]
[null,null,null,null,null,null,null,null,null,null,0]
[null,null,null,null,null,null,null,null,null,null,0]
[null,null,null,null,null,null,null,null,null,null,0]

{"sheet":"STRUCTURES","index":5,"n_rows":44,"n_cols":41,"rows_kept":44,"cut":false,"hidden":false,"merged":[[0,23,8,23],[1,5,7,5],[1,8,7,8],[1,9,7,9],[1,17,7,17],[0,15,0,16],[1,15,3,16],[4,15,7,15],[4,16,7,16],[1,18,7,18],[1,20,7,20],[1,22,7,22],[1,19,7,19],[1,13,7,13],[1,6,7,6],[1,10,7,10],[41,15,41,16],[42,15,42,16],[43,15,43,16],[1,21,7,21],[41,0,41,4],[42,0,42,4],[43,0,43,4],[0,0,8,0],[0,1,7,1],[0,2,7,2],[0,3,7,3],[0,4,7,4],[1,12,7,12],[1,7,7,7],[1,14,7,14],[1,11,7,11]]}
["BRIDGE NUMBER","WIDTH (TOE/TOE OF PARAPETS)","LENGTH (BRIDGE LIMITS)","REAR APPROACH SLAB LENGTH","FORWARD APPROACH SLAB LENGTH","SPECIAL",null,512,512,512,null,512,516,null,null,642,null,642,null,null,null,null,512,"STRUCTURAL FILE NUMBER"]
[null,null,null,null,null,"PATCHING CONCRETE BRIDGE DECK OVERLAY WITH MICRO-SILICA MODIFIED CONCRETE",null,"REMOVAL OF EXISTING COATINGS FROM CONCRETTE SURFACES ","TREATING OF CONCRETE BRIDGE DECKS WITH SRS (INCLUDING APPROACH SLABS)","SEALING CONCRETE BRIDGE DECKS WITH HMWM RESIN, AS PER PLAN (ESTIMATED AT 10% OF SRS AREA)",null,"REMOVAL OF EXISTING PAVEMENT MARKINGS","PREFORMED ELASTOMERIC COMPRESSION JOINT SEAL",null,null,"EDGE LINE, 6\", TYPE 1",null,"LANE LINE, 6\", TYPE 1",null,null,null,null,"REMOVAL OF EXISTING COATINGS FROM CONCRETTE SURFACES "]
[]
[]
[null,null,null,null,null,null,null,null,null,null,null,null,null,null,null,"WHITE","YELLOW"]
[]
[]
[]
[null,"FT","FT","FT","FT","SQ YD",null,"SQ YD","SQ YD","SQ YD",null,"FT","FT",null,null,"FT","FT","FT",null,null,null,null,"SQ YD"]
["JAC-35-1147B",26.83,{"$f":"ROUNDUP(342.5,0)","v":343},25,25,null,null,{"$f":"ROUNDUP(+($C10+$D10+$E10)*0.75*0.222222222222222,0)","v":66},{"$f":"ROUNDUP(((C10*B10)+((E10*B10)+(D10*B10)))/9,0)","v":1172},{"$f":"ROUNDUP(I10*0.1,0)","v":118},null,{"$f":"ROUNDUP(P10+Q10+R10,0)","v":786},55,null,null,{"$f":"+C10+D10+E10","v":393},{"$f":"+C10+D10+E10","v":393},null,null,null,null,null,{"$f":"+(C10+D10+E10)*0.75*0.222222222222222","v":65.499999999999929},"4000293"]
["JAC-35-1147D",26.83,{"$f":"ROUNDUP(312.86,0)","v":313},25,25,null,null,{"$f":"ROUNDUP(+($C11+$D11+$E11)*0.75*0.222222222222222,0)","v":61},{"$f":"ROUNDUP(((C11*B11)+((E11*B11)+(D11*B11)))/9,0)","v":1083},{"$f":"ROUNDUP(I11*0.1,0)","v":109},null,{"$f":"ROUNDUP(P11+Q11+R11,0)","v":726},54,null,null,{"$f":"+C11+D11+E11","v":363},{"$f":"+C11+D11+E11","v":363},null,null,null,null,null,{"$f":"+(C11+D11+E11)*0.75*0.222222222222222","v":60.499999999999936},"4000358"]
[]
["JAC-35-1147L",38.832999999999998,{"$f":"ROUNDUP(328.88,0)","v":329},null,null,null,null,55,1420,142,null,987,null,null,null,{"$f":"+C13+D13+E13","v":329},{"$f":"+C13+D13+E13","v":329},{"$f":"+C13+D13+E13","v":329},null,null,null,null,{"$f":"+(C13+D13+E13)*0.75*0.222222222222222","v":54.833333333333279},"4000315"]
["JAC-35-1147R",38.832999999999998,{"$f":"ROUNDUP(328.88,0)","v":329},null,null,null,null,55,1420,142,null,987,84,null,null,329,329,329,null,null,null,null,{"$f":"+(C14+D14+E14)*0.75*0.222222222222222","v":54.833333333333279},"4000323"]
[]
["JAC-35-1216L",38.832999999999998,{"$f":"ROUNDUP(235.8,0)","v":236},null,null,null,null,40,1019,102,null,708,null,null,null,236,236,236,null,null,null,null,{"$f":"+(C16+D16+E16)*0.75*0.222222222222222","v":39.333333333333293},"4000374"]
["JAC-35-1216R",38.832999999999998,{"$f":"ROUNDUP(202.82,0)","v":203},null,null,null,null,34,876,88,null,609,null,null,null,203,203,203,null,null,null,null,{"$f":"+(C17+D17+E17)*0.75*0.222222222222222","v":33.8333333333333},"4000382"]
[]
["JAC-35-1228L",{"$f":"38.833","v":38.832999999999998},{"$f":"ROUNDUP(196.74,0)","v":197},null,null,null,null,33,851,86,null,591,40,null,null,197,197,197,null,null,null,null,{"$f":"+(C19+D19+E19)*0.75*0.222222222222222","v":32.8333333333333},"4000404",null,null,null,675,"R ",7101546,80,40,3197,0,0,30,4.5,1.5,"Y",20,"OLD TOWN RUN             "]
["JAC-35-1228R",38.832999999999998,{"$f":"ROUNDUP(196.74,0)","v":197},null,null,null,null,33,851,86,null,591,80,null,null,197,197,197,null,null,null,null,{"$f":"+(C20+D20+E20)*0.75*0.222222222222222","v":32.8333333333333},"4000412",null,null,null,675,"L ",7101554,80,40,3197,0,0,30,4.5,1.5,"Y",20,"OLD TOWN RUN             "]
[null,null,null,null,null,null,null,null,null,null,null,null,null,null,null,null,null,null,null,null,null,null,null,null,null,null,null,869,"R ",7101589,18,40,721,0,0,4,4.5,1.5,"N",0,"STREAM                   "]
["JAC-35-1294L",{"$f":"38.833","v":38.832999999999998},{"$f":"ROUNDUP(158.29,0)","v":159},null,null,null,null,27,687,69,null,477,69,null,null,159,159,159,null,null,null,null,{"$f":"+(C22+D22+E22)*0.75*0.222222222222222","v":26.499999999999972},"4000463",null,null,null,869,"L ",7101600,18,40,721,0,0,4,4.5,1.5,"N",0,"STREAM                   "]
["JAC-35-1294R",{"$f":"38.833","v":38.832999999999998},{"$f":"ROUNDUP(158.29,0)","v":159},null,null,null,null,27,687,69,null,477,74,null,null,159,159,159,null,null,null,null,{"$f":"+(C23+D23+E23)*0.75*0.222222222222222","v":26.499999999999972},"4000471",null,null,null,1472,"R ",7101724,167,42,7018,0,0,30,3.5,1.5,"N",0,"CO RD 550                "]
[null,null,null,null,null,null,null,null,null,null,null,null,null,null,null,null,null,null,null,null,null,null,null,null,null,null,null,1472,"L ",7101732,167,51,8514,0,0,30,3.5,1.5,"N",0,"CO RD 550                "]
["JAC-35-1365F",25,{"$f":"ROUNDUP(92.5,0)","v":93},25,25,null,null,null,398,40,null,286,82,null,null,143,143,null,null,null,null,null,{"$f":"+(C25+D25+E25)*0.75*0.222222222222222","v":23.833333333333307},"4000447",null,null,null,1663,"L ",7101740,127,42,5339,0,0,37,3.5,1.5,"N",0,"CO RD 550                "]
["JAC-35-1365H",25,{"$f":"ROUNDUP(72.34,0)","v":73},25,25,null,null,null,342,35,null,246,null,null,null,123,123,null,null,null,null,null,null,"4000439",null,null,null,1663,"R ",7101805,127,42,5339,0,0,37,3.5,1.5,"N",0,"CO RD 550                "]
[null,null,null,null,null,null,null,null,null,null,null,null,null,null,null,null,null,null,null,null,null,null,{"$f":"+(C27+D27+E27)*0.75*0.222222222222222","v":0},null,null,null,null,1851,"L ",7101864,266,36.299999999999997,9645,0,0,55,3.5,1.5,"N",0,"SR 104                   "]
["JAC-35-1365L",40,{"$f":"ROUNDUP(86.22,0)","v":87},null,null,null,null,null,387,39,null,261,100,null,null,87,87,87,null,null,null,null,{"$f":"+(C28+D28+E28)*0.75*0.222222222222222","v":14.499999999999984},"4000420"]
["JAC-35-1365R",40,{"$f":"ROUNDUP(86.22,0)","v":87},null,null,null,null,null,387,39,null,261,null,null,null,87,87,87,null,null,null,null,null,"4000455",null,null,null,1919,"L ",7101988,1181,36,42518,0,0,20,2.5,1.5,"N",0,"SCIOTO RIVER             "]
[null,null,null,null,null,null,null,null,null,null,null,null,null,null,null,null,null,null,null,null,null,null,{"$f":"+(C30+D30+E30)*0.75*0.222222222222222","v":0},null,null,null,null,1919,"R ",7102011,1181,36,42518,0,0,20,2.5,1.5,"N",0,"SCIOTO RIVER             "]
["PIK-23-0092L",44.5,79.5,15,15,null,null,{"$f":"ROUNDUP(+($C31+$D31+$E31)*0.75*0.222222222222222,0)","v":19},542,55,null,329,96,null,null,109.5,109.5,109.5,null,null,null,null,{"$f":"+(C31+D31+E31)*0.75*0.222222222222222","v":18.249999999999982},"6600042",null,null,null,1972,"L ",7102046,174,59,10269,0,0,7,2.5,1.5,"N",0,"SR 159 (BRIDGE ST)       "]
["PIK-23-0092R",44.5,79.5,15,15,null,null,19,542,55,null,329,null,null,null,109.5,109.5,109.5,null,null,null,null,null,"6600077",null,null,null,1972,"R ",7102070,174,42,7309,0,0,7,2.5,1.5,"N",0,"SR 159 (BRIDGE ST)       "]
[null,null,null,null,null,null,null,null,null,null,null,null,null,null,null,null,null,null,null,null,null,null,null,null,null,null,null,2014,"L ",7102100,145,42,6092,0,0,1,2.5,1.5,"Y",25,"N&W RR                   "]
["PIK-23-0977",89,800,15,15,null,null,{"$f":"ROUNDUP(+($C34+$D34+$E34)*0.75*0.222222222222222,0)","v":139},8208,821,null,4980,null,null,null,{"$f":"(+C34+D34+E34)*2","v":1660},{"$f":"(+C34+D34+E34)*2","v":1660},{"$f":"(+C34+D34+E34)*2","v":1660},null,null,null,null,null,"6600360",null,null,null,2014,"R ",7102135,145,42,6092,0,0,1,2.5,1.5,"Y",25,"N&W RR                   "]
[null,null,null,null,null,null,null,null,null,null,null,null,null,null,null,null,null,null,null,null,null,null,null,null,null,null,null,2042,0,7102194,233,37,8622,0,0,59,2.5,1.5,"Y",25,"S.B. US 23               "]
["PIK-23-1034",89,859,15,15,null,null,{"$f":"ROUNDUP(+($C36+$D36+$E36)*0.75*0.222222222222222,0)","v":149},8792,880,null,5334,116,null,null,{"$f":"(+C36+D36+E36)*2","v":1778},{"$f":"(+C36+D36+E36)*2","v":1778},{"$f":"(+C36+D36+E36)*2","v":1778},null,null,null,null,{"$f":"+(C36+D36+E36)*0.75*0.222222222222222","v":148.16666666666652},"6600425",null,null,null,2419,"L ",7102259,1286,36,46296,0,0,0,2,1.5,"Y",25,"SCIOTO RIVER             "]
[null,null,null,null,null,null,null,null,null,null,null,null,null,null,null,null,null,null,null,null,null,null,{"$f":"+(C37+D37+E37)*0.75*0.222222222222222","v":0}]
["PIK-23-1087",89,440,15,15,null,null,{"$f":"ROUNDUP(+($C38+$D38+$E38)*0.75*0.222222222222222,0)","v":79},4648,465,null,2820,null,null,null,{"$f":"(+C38+D38+E38)*2","v":940},{"$f":"(+C38+D38+E38)*2","v":940},{"$f":"(+C38+D38+E38)*2","v":940},null,null,null,null,null,"6600514",null,null,null,2419,"R ",7102291,1280.3,39,49934,0,0,10,1,1.5,"Y",25,"SCIOTO RIVER             "]
[null,null,null,null,null,null,null,null,null,null,null,null,null,null,null,null,null,null,null,null,null,null,null,null,null,null,null,2604,"R ",7102410,79.599999999999994,45,3584,0,0,20,1,1.5,"Y",25,"DRY RUN                  "]
[]
[]
["TOTAL",null,null,null,null,{"$f":"SUM(F14:F40)","v":0},null,{"$f":"+SUM(H10:H41)","v":836},{"$f":"+SUM(I10:I41)","v":34312},{"$f":"+SUM(J10:J41)","v":3440},null,{"$f":"SUM(L10:L38)","v":21785},{"$f":"+SUM(M10:M41)","v":850},null,null,{"$f":"+SUM(P10:Q40)","v":15204},null,{"$f":"+SUM(R10:R41)","v":6580},null,null,null,null,{"$f":"SUM(W10:W41)","v":632.24999999999955},null,null,null,null,3343,"R ",7102623,150.69999999999999,45,6781,0,0,9,1,1.5,"Y",25,"JACKSON SHORT LINE R.R.  "]
["CONVERT TO MILES",null,null,null,null,null,null,null,null,null,null,null,null,null,null,{"$f":"+P42/5280","v":2.8795454545454544},null,{"$f":"+R42/5280","v":1.2462121212121211},null,null,null,null,null,null,null,null,null,3402,0,7102607,222,39,8654,0,0,0,1,1.5,"Y",25,"VIGO ROAD (CR 207)       "]
["TOTALS CARRIED TO GENERAL SUMMARY",null,null,null,null,{"$f":"F42","v":0},null,{"$f":"+ROUNDUP(H42,0)","v":836},{"$f":"+ROUNDUP(I42,0)","v":34312},{"$f":"+ROUNDUP(J42,0)","v":3440},null,{"$f":"L42","v":21785},{"$f":"+ROUNDUP(M42,0)","v":850},null,null,{"$f":"+ROUNDUP(P43,2)","v":2.88},null,{"$f":"+ROUNDUP(R43,2)","v":1.25},null,null,null,null,{"$f":"+ROUNDUP(W42,0)","v":633},null,null,null,null,3418,"L ",7102666,283,55.8,15780,0,0,20,1,1.5,"Y",25,"SALT CREEK               "]